[Event "40th IND-chT Open 2020"]
[Site "Ahmedabad"]
[Date "2020.02.09"]
[Round "4.13"]
[White "Chauhan, Joy"]
[Black "Krishna C R G"]
[Result "*"]
[ECO "C15"]
[WhiteElo "1864"]
[BlackElo "2443"]
[Annotator "RC"]
[PlyCount "40"]
[EventDate "2020.02.05"]
[EventCountry "IND"]
[SourceTitle "playchess.com"]
[Source "ChessBase"]
[SourceQuality "1"]
[TimeControl "5400+30"]

1. e4 {[%emt 1:30:30]} e6 {[%emt 1:30:30]} 2. d4 {[%emt 0:00:30]} d5 {[%emt 0:00:30]} 3. Nc3 {[%emt 0:00:30]} Bb4 {[%emt 0:00:30]} 4. Nge2 {[%emt 0:00:30]} dxe4 {[%emt 0:00:30]} 5. a3 {[%emt 0:00:30]} Bxc3+ {[%emt 0:00:30]} 6. Nxc3 {[%emt 0:00:30]} Nc6 {[%emt 0:00:30]} 7. d5 {[%emt 0:00:30]} exd5 {[%emt 0:00:30]} 8. Qxd5 {[%emt 0:00:30]} Be6 {[%emt 0:00:30]} 9. Qxe4 {[%emt 0:00:30]} Nf6 {[%emt 0:00:30]} 10. Qh4 {[%emt 0:00:30]} Qe7 {[%emt 0:00:30]} 11. Be3 {[%emt 0:00:30]} O-O-O {[%emt 0:00:30]} 12. Bb5 {[%emt 0:00:30]} Nd5 {[%emt 0:00:30]} 13. Qxe7 {[%emt 0:00:30]} Ndxe7 {[%emt 0:00:30]} 14. O-O {[%emt 0:00:30]} Nd4 {[%emt 0:00:30]} 15. Bxd4 {[%emt 0:00:30]} Rxd4 {[%emt 0:00:30]} 16. Rfd1 {[%emt 0:00:30]} Rhd8 {[%emt 0:00:30]} 17. Rxd4 {[%emt 0:00:30]} Rxd4 {[%emt 0:00:30]} 18. Rd1 {[%emt 0:00:30]} Rd3 {[%emt 0:00:30]} 19. Rd2 Rxd2 20. Nd1 Rxd1+ *

[Event "40th IND-chT Open 2020"]
[Site "Ahmedabad"]
[Date "2020.02.09"]
[Round "4.20"]
[White "Harsh, Himanshu"]
[Black "Swain Ashirwad"]
[Result "1-0"]
[ECO "B01"]
[WhiteElo "1762"]
[BlackElo "2087"]
[Annotator "NA RC"]
[PlyCount "51"]
[EventDate "2020.02.05"]
[EventCountry "IND"]
[SourceTitle "playchess.com"]
[Source "ChessBase"]
[SourceQuality "1"]
[TimeControl "5400+30"]

1. e4 d5 2. exd5 Qxd5 3. Nc3 Qd6 4. g3 Nf6 5. Bg2 a6 6. Nge2 {B01: Scandinavian Defence.} Nc6 7. d4 Bg4 8. Bf4 Qd7 {[#]} ({Black should play} 8... Qb4 $1 $14) 9. h3 (9. d5 $1 $16 {[%cal Rd5c6]} Na7 10. h3) 9... Bxe2 (9... Be6 $2 {[%mdl 8192]}) (9... Bf5 $14) 10. Nxe2 O-O-O 11. c3 Nd5 12. O-O {[#]} Nxf4 $146 ({Predecessor:} 12... h6 13. b4 g5 14. Bd2 e5 15. a4 Bg7 16. b5 Nb8 17. c4 Ne7 18. Qb3 a5 {1-0 (36) Polonovsky,E (2180)-Kharchenko,D (2009) St Petersburg 2012}) 13. Nxf4 e6 14. Qf3 Bd6 15. Nd3 Rdf8 16. b4 f5 17. a4 Nd8 18. b5 a5 19. Ne5 Qe7 20. Nc4 g5 21. Nxa5 h5 22. Nxb7 g4 23. hxg4 hxg4 24. Nxd6+ $18 Qxd6 25. Qf4 Nf7 26. a5 1-0

[Event "40th IND-chT Open 2020"]
[Site "Ahmedabad"]
[Date "2020.02.09"]
[Round "4.22"]
[White "Santu, Mondal"]
[Black "Himanshu Ranjan"]
[Result "1/2-1/2"]
[ECO "E05"]
[WhiteElo "2093"]
[BlackElo "1908"]
[Annotator "NA RC"]
[PlyCount "61"]
[EventDate "2020.02.05"]
[EventCountry "IND"]
[SourceTitle "playchess.com"]
[Source "ChessBase"]
[SourceQuality "1"]
[TimeControl "5400+30"]

1. d4 {[%emt 0:00:00]} Nf6 {[%emt 0:00:00]} 2. g3 {[%emt 0:00:30]} d5 {[%emt 0:00:30]} 3. c4 {[%emt 0:00:30]} e6 {[%emt 0:00:30]} 4. Nf3 {[%emt 0:00:30]} Be7 {[%emt 0:00:30]} 5. Bg2 {[%emt 0:00:30]} O-O {[%emt 0:00:30]} 6. O-O {[%emt 0:00:30]} dxc4 {[%emt 0:00:30]} 7. Qc2 {[%emt 0:00:30]} a6 {[%emt 0:00:30]} 8. a4 {[%emt 0:00:30]} Bd7 {[%emt 0:00:30]} 9. Qxc4 {[%emt 0:00:30]} Bc6 {[%emt 0:00:30]} 10. Nc3 {[%emt 0:00:30]} b5 $1 {[%emt 0:00:30]} 11. Qd3 {[%emt 0:00:30] E05: Open Catalan: 5 Nf3 Be7.} b4 {[%emt 0:00:30]} 12. Nb1 {[%emt 0:00:30] [#]} a5 $146 {[%emt 0:00:30]} ({Predecessor:} 12... Be4 13. Qd1 Nbd7 14. Bg5 c5 15. Nbd2 Bd5 16. Bxf6 Nxf6 17. dxc5 Bxc5 18. Nb3 Rc8 19. Ne5 Bd6 20. Bxd5 Nxd5 21. Nd3 {1-0 (54) Kamsky,G (2721)-Radjabov,T (2713) Beijing 2013}) 13. Bg5 {[%emt 0:00:30]} Bb7 {[%emt 0:00:30]} 14. Bxf6 {[%emt 0:00:30]} Bxf6 {[%emt 0:00:30]} 15. Nbd2 {[%emt 0:00:30]} c5 {[%emt 0:00:30]} 16. Ne4 {[%emt 0:00:30]} cxd4 {[%emt 0:00:30]} 17. Nxf6+ {[%emt 0:00:30]} Qxf6 {[%emt 0:00:30]} 18. Qxd4 {[%emt 0:00:30]} Qxd4 {[%emt 0:00:30]} 19. Nxd4 {[%emt 0:00:30]} Bxg2 {[%emt 0:00:30]} 20. Kxg2 $11 {[%emt 0:00:30]} Re8 {[%emt 0:00:30]} ({Black should try} 20... Rc8 $11) 21. Rfc1 {[%emt 0:00:30]} Nd7 {[%emt 0:00:30]} 22. b3 {[%emt 0:00:30]} Kf8 {[%emt 0:00:30]} 23. Kf3 {[%emt 0:00:30]} Ke7 {[%emt 0:00:30]} 24. Ke3 {[%emt 0:00:30]} Nf6 {[%emt 0:00:30]} 25. Nb5 {[%emt 0:00:30]} Nd5+ {[%emt 0:00:30]} 26. Kd2 {[%emt 0:00:30]} Nf6 {[%emt 0:00:30]} 27. Ke3 {[%emt 0:00:30]} Nd5+ {[%emt 0:00:30]} 28. Kd2 {[%emt 0:00:30]} Nf6 {[%emt 0:00:30]} 29. Ke3 {[%emt 0:00:30]} Nd5+ {[%emt 0:00:30]} 30. Kd2 {[%emt 0:00:30]} Nf6 {[%emt 0:00:30]} 31. Ke3 {[%emt 0:00:30]} 1/2-1/2